Workbook

Sheet XY Scatter
B2: Tooltips on Charts - Chart Events | H2: www.clearlyandsimply.com
B4: Please note: click on the chart first to see the tooltips when hovering over data points

Sheet Bar
B2: Tooltips on Charts - Chart Events | H2: www.clearlyandsimply.com
B4: Please note: click on the chart first to see the tooltips when hovering over data points

Sheet Data
B2: Data | C2: Fertility and Life Expectancy 2013 | F2: source: www.gapminder.org
B4: Country | C4: Region | D4: Fertility Rate | E4: Life Expectancy | F4: Population | H4: Region | I4: Avg. Fertility Rate | J4: Avg. Life Expectancy | K4: Sum Population
B5: Afghanistan | C5: Asia + Pacific | D5: 4.9 | E5: 60.947 | F5: 34499915 | H5: Asia + Pacific | I5: =AVERAGEIF(tab_data[Region],$H5,tab_data[Fertility Rate]) -> 2.521434783 | J5: =AVERAGEIF(tab_data[Region],$H5,tab_data[Life Expectancy]) -> 72.45106522 | K5: =SUMIF(tab_data[Region],$H5,tab_data[Population]) -> 4084690449
B6: Albania | C6: Europe | D6: 1.771 | E6: 77.392 | F6: 3238316 | H6: Europe | I6: =AVERAGEIF(tab_data[Region],$H6,tab_data[Fertility Rate]) -> 1.646956522 | J6: =AVERAGEIF(tab_data[Region],$H6,tab_data[Life Expectancy]) -> 77.3218913 | K6: =SUMIF(tab_data[Region],$H6,tab_data[Population]) -> 841769768
B7: Algeria | C7: Africa | D7: 2.795 | E7: 71 | F7: 36983924 | H7: Africa | I7: =AVERAGEIF(tab_data[Region],$H7,tab_data[Fertility Rate]) -> 4.367964912 | J7: =AVERAGEIF(tab_data[Region],$H7,tab_data[Life Expectancy]) -> 60.36724561 | K7: =SUMIF(tab_data[Region],$H7,tab_data[Population]) -> 1094732690
B8: Angola | C8: Africa | D8: 5.863 | E8: 51.899 | F8: 20714494 | H8: North America | I8: =AVERAGEIF(tab_data[Region],$H8,tab_data[Fertility Rate]) -> 2.0555 | J8: =AVERAGEIF(tab_data[Region],$H8,tab_data[Life Expectancy]) -> 79.13225 | K8: =SUMIF(tab_data[Region],$H8,tab_data[Population]) -> 353691081
B9: Antigua and Barbuda | C9: North America | D9: 2.089 | E9: 75.954 | F9: 91404 | H9: Latin America + Caribbean | I9: =AVERAGEIF(tab_data[Region],$H9,tab_data[Fertility Rate]) -> 2.280527778 | J9: =AVERAGEIF(tab_data[Region],$H9,tab_data[Life Expectancy]) -> 74.63791667 | K9: =SUMIF(tab_data[Region],$H9,tab_data[Population]) -> 609217581
B10: Argentina | C10: Latin America + Caribbean | D10: 2.175 | E10: 76.305 | F10: 41473982 | H10: West Asia | I10: =AVERAGEIF(tab_data[Region],$H10,tab_data[Fertility Rate]) -> 2.817166667 | J10: =AVERAGEIF(tab_data[Region],$H10,tab_data[Life Expectancy]) -> 74.061 | K10: =SUMIF(tab_data[Region],$H10,tab_data[Population]) -> 144691525
B11: Armenia | C11: Europe | D11: 1.74 | E11: 74.561 | F11: 3117722
B12: Aruba | C12: Latin America + Caribbean | D12: 1.673 | E12: 75.455 | F12: 108883
B13: Australia | C13: Asia + Pacific | D13: 1.882 | E13: 82.496 | F13: 23213944
B14: Austria | C14: Europe | D14: 1.471 | E14: 81.137 | F14: 8441263
B15: Azerbaijan | C15: Europe | D15: 1.924 | E15: 70.753 | F15: 9533445
B16: Bahamas | C16: Latin America + Caribbean | D16: 1.888 | E16: 75.237 | F16: 355233
B17: Bahrain | C17: West Asia | D17: 2.075 | E17: 76.608 | F17: 1377273
B18: Bangladesh | C18: Asia + Pacific | D18: 2.177 | E18: 70.657 | F18: 154393847
B19: Barbados | C19: Latin America + Caribbean | D19: 1.849 | E19: 75.37 | F19: 275141
B20: Belarus | C20: Europe | D20: 1.494 | E20: 69.928 | F20: 9498290
B21: Belgium | C21: Europe | D21: 1.854 | E21: 80.548 | F21: 10815599
B22: Belize | C22: Latin America + Caribbean | D22: 2.676 | E22: 73.882 | F22: 330721
B23: Benin | C23: Africa | D23: 4.845 | E23: 59.33 | F23: 9606534
B24: Bhutan | C24: Asia + Pacific | D24: 2.232 | E24: 68.294 | F24: 762313
B25: Bolivia | C25: Latin America + Caribbean | D25: 3.221 | E25: 67.26 | F25: 10409761
B26: Bosnia and Herzegovina | C26: Europe | D26: 1.283 | E26: 76.37 | F26: 3735880
B27: Botswana | C27: Africa | D27: 2.619 | E27: 47.572 | F27: 2074616
B28: Brazil | C28: Latin America + Caribbean | D28: 1.801 | E28: 73.937 | F28: 200050487
B29: Brunei | C29: Asia + Pacific | D29: 1.994 | E29: 78.547 | F29: 419772
B30: Bulgaria | C30: Europe | D30: 1.541 | E30: 73.549 | F30: 7349462
B31: Burkina Faso | C31: Africa | D31: 5.605 | E31: 56.344 | F31: 18011507
B32: Burundi | C32: Africa | D32: 6.033 | E32: 54.104 | F32: 8911183
B33: Cambodia | C33: Asia + Pacific | D33: 2.861 | E33: 71.916 | F33: 14656016
B34: Cameroon | C34: Africa | D34: 4.78 | E34: 55.065 | F34: 20913595
B35: Canada | C35: North America | D35: 1.67 | E35: 81.482 | F35: 34993747
B36: Cape Verde | C36: Africa | D36: 2.292 | E36: 75.093 | F36: 510213
B37: Central African Republic | C37: Africa | D37: 4.365 | E37: 50.179 | F37: 4666833
B38: Chad | C38: Africa | D38: 6.263 | E38: 51.182 | F38: 12141876
B39: Channel Islands | C39: Europe | D39: 1.459 | E39: 80.324 | F39: 154432
B40: Chile | C40: Latin America + Caribbean | D40: 1.82 | E40: 79.955 | F40: 17574464
B41: China | C41: Asia + Pacific | D41: 1.668 | E41: 75.331 | F41: 1359368470
B42: Colombia | C42: Latin America + Caribbean | D42: 2.286 | E42: 74.038 | F42: 48165221
B43: Comoros | C43: Africa | D43: 4.714 | E43: 60.874 | F43: 792913
B44: Congo, Dem. Republic | C44: Africa | D44: 5.933 | E44: 49.963 | F44: 71419669
B45: Congo, Republic | C45: Africa | D45: 4.969 | E45: 58.793 | F45: 4324199
B46: Costa Rica | C46: Latin America + Caribbean | D46: 1.795 | E46: 79.93 | F46: 4859957
B47: Cote d'Ivoire | C47: Africa | D47: 4.866 | E47: 50.722 | F47: 21057316
B48: Croatia | C48: Europe | D48: 1.501 | E48: 77.048 | F48: 4378806
B49: Cuba | C49: Latin America + Caribbean | D49: 1.449 | E49: 79.262 | F49: 11244424
B50: Cyprus | C50: Europe | D50: 1.461 | E50: 79.841 | F50: 1141453
B51: Czech Republic | C51: Europe | D51: 1.566 | E51: 77.69 | F51: 10589806
B52: Denmark | C52: Europe | D52: 1.88 | E52: 79.388 | F52: 5611187
B53: Djibouti | C53: Africa | D53: 3.387 | E53: 61.801 | F53: 940090
B54: Dominican Republic | C54: Latin America + Caribbean | D54: 2.484 | E54: 73.402 | F54: 10308609
B55: Ecuador | C55: Latin America + Caribbean | D55: 2.559 | E55: 76.471 | F55: 15061398
B56: Egypt | C56: Africa | D56: 2.77 | E56: 71.157 | F56: 85378440
B57: El Salvador | C57: Latin America + Caribbean | D57: 2.184 | E57: 72.599 | F57: 6302723
B58: Equatorial Guinea | C58: Africa | D58: 4.845 | E58: 53.062 | F58: 761050
B59: Eritrea | C59: Africa | D59: 4.696 | E59: 62.852 | F59: 5748304
B60: Estonia | C60: Europe | D60: 1.604 | E60: 74.441 | F60: 1338832
B61: Ethiopia | C61: Africa | D61: 4.519 | E61: 63.635 | F61: 88356373
B62: Fiji | C62: Asia + Pacific | D62: 2.588 | E62: 69.81 | F62: 882863
B63: Finland | C63: Europe | D63: 1.853 | E63: 80.535 | F63: 5418763
B64: France | C64: Europe | D64: 1.98 | E64: 81.81 | F64: 63782963
B65: French Guiana | C65: Latin America + Caribbean | D65: 3.058 | E65: 77.121 | F65: 249408
B66: French Polynesia | C66: Asia + Pacific | D66: 2.058 | E66: 76.257 | F66: 279632
B67: Gabon | C67: Africa | D67: 4.087 | E67: 63.48 | F67: 1594205
B68: Gambia | C68: Africa | D68: 5.751 | E68: 58.818 | F68: 1874360
B69: Georgia | C69: Europe | D69: 1.817 | E69: 74.301 | F69: 4278410
B70: Germany | C70: Europe | D70: 1.419 | E70: 80.743 | F70: 81804228
B71: Ghana | C71: Africa | D71: 3.857 | E71: 61.132 | F71: 26131336
B72: Greece | C72: Europe | D72: 1.529 | E72: 80.77 | F72: 11445691
B73: Grenada | C73: Latin America + Caribbean | D73: 2.17 | E73: 72.768 | F73: 105719
B74: Guadeloupe | C74: Latin America + Caribbean | D74: 2.08 | E74: 80.947 | F74: 467335
B75: Guam | C75: Asia + Pacific | D75: 2.405 | E75: 78.854 | F75: 186562
B76: Guatemala | C76: Latin America + Caribbean | D76: 3.783 | E76: 72.099 | F76: 15527502
B77: Guinea | C77: Africa | D77: 4.915 | E77: 56.112 | F77: 10753680
B78: Guinea-Bissau | C78: Africa | D78: 4.927 | E78: 54.291 | F78: 1612913
B79: Guyana | C79: Latin America + Caribbean | D79: 2.546 | E79: 66.295 | F79: 759262
B80: Haiti | C80: Latin America + Caribbean | D80: 3.148 | E80: 63.102 | F80: 10388424
B81: Honduras | C81: Latin America + Caribbean | D81: 3.001 | E81: 73.817 | F81: 8071522
B82: Hong Kong, China | C82: Asia + Pacific | D82: 1.135 | E82: 83.378 | F82: 7274125
B83: Hungary | C83: Europe | D83: 1.411 | E83: 74.62 | F83: 9933795
B84: Iceland | C84: Europe | D84: 2.083 | E84: 82.086 | F84: 331996
B85: India | C85: Asia + Pacific | D85: 2.479 | E85: 66.414 | F85: 1275137828
B86: Indonesia | C86: Asia + Pacific | D86: 2.338 | E86: 70.833 | F86: 247188189
B87: Iran | C87: Asia + Pacific | D87: 1.92 | E87: 74.048 | F87: 76407013
B88: Iraq | C88: West Asia | D88: 4.026 | E88: 69.419 | F88: 34776205
B89: Ireland | C89: Europe | D89: 1.997 | E89: 80.707 | F89: 4631391
B90: Israel | C90: Europe | D90: 2.898 | E90: 81.801 | F90: 7818860
B91: Italy | C91: Europe | D91: 1.487 | E91: 82.385 | F91: 61087395
B92: Jamaica | C92: Latin America + Caribbean | D92: 2.26 | E92: 73.525 | F92: 2771179
B93: Japan | C93: Asia + Pacific | D93: 1.419 | E93: 83.58 | F93: 126345235
B94: Jordan | C94: West Asia | D94: 3.244 | E94: 73.854 | F94: 6572903
B95: Kazakhstan | C95: Asia + Pacific | D95: 2.455 | E95: 66.536 | F95: 16550975
B96: Kenya | C96: Africa | D96: 4.382 | E96: 61.716 | F96: 43923719
B97: Kiribati | C97: Asia + Pacific | D97: 2.952 | E97: 68.905 | F97: 104251
B98: Korea, Dem. Republic | C98: Asia + Pacific | D98: 1.988 | E98: 69.999 | F98: 24654358
B99: Korea, Republic | C99: Asia + Pacific | D99: 1.321 | E99: 81.535 | F99: 48774767
B100: Kuwait | C100: West Asia | D100: 2.6 | E100: 74.288 | F100: 2959015
B101: Kyrgyzstan | C101: Asia + Pacific | D101: 3.075 | E101: 67.533 | F101: 5503253
B102: Laos | C102: Asia + Pacific | D102: 3.02 | E102: 68.309 | F102: 6458911
B103: Latvia | C103: Europe | D103: 1.607 | E103: 72.15 | F103: 2226260
B104: Lebanon | C104: West Asia | D104: 1.495 | E104: 80.007 | F104: 4324060
B105: Lesotho | C105: Africa | D105: 3.038 | E105: 49.446 | F105: 2240126
B106: Liberia | C106: Africa | D106: 4.792 | E106: 60.556 | F106: 4348740
B107: Libya | C107: Africa | D107: 2.356 | E107: 75.325 | F107: 6506095
B108: Lithuania | C108: Europe | D108: 1.519 | E108: 72.11 | F108: 3278337
B109: Luxembourg | C109: Europe | D109: 1.671 | E109: 80.547 | F109: 530018
B110: Macao, China | C110: Asia + Pacific | D110: 1.083 | E110: 80.4 | F110: 578844
B111: Macedonia, FYR | C111: Europe | D111: 1.431 | E111: 75.198 | F111: 2069219
B112: Madagascar | C112: Africa | D112: 4.468 | E112: 64.723 | F112: 22555046
B113: Malawi | C113: Africa | D113: 5.389 | E113: 55.311 | F113: 16406945
B114: Malaysia | C114: Asia + Pacific | D114: 1.964 | E114: 75.017 | F114: 29787203
B115: Maldives | C115: Asia + Pacific | D115: 2.256 | E115: 77.919 | F115: 328551
B116: Mali | C116: Africa | D116: 6.847 | E116: 55.032 | F116: 16808242
B117: Malta | C117: Europe | D117: 1.356 | E117: 79.75 | F117: 420557
B118: Martinique | C118: Latin America + Caribbean | D118: 1.827 | E118: 81.41 | F118: 409366
B119: Mauritania | C119: Africa | D119: 4.67 | E119: 61.55 | F119: 3704414
B120: Mauritius | C120: Africa | D120: 1.501 | E120: 73.613 | F120: 1320785
B121: Mayotte | C121: Africa | D121: 3.802 | E121: 79.19 | F121: 223907
B122: Mexico | C122: Latin America + Caribbean | D122: 2.185 | E122: 77.501 | F122: 117478371
B123: Micronesia, Fed. Sts. | C123: Asia + Pacific | D123: 3.294 | E123: 68.993 | F123: 112726
B124: Moldova | C124: Europe | D124: 1.456 | E124: 68.899 | F124: 3495657
B125: Mongolia | C125: Asia + Pacific | D125: 2.436 | E125: 67.503 | F125: 2887863
B126: Montenegro | C126: Europe | D126: 1.666 | E126: 74.821 | F126: 633167
B127: Morocco | C127: Africa | D127: 2.735 | E127: 70.941 | F127: 32925553
B128: Mozambique | C128: Africa | D128: 5.188 | E128: 50.25 | F128: 25028313
B129: Myanmar | C129: Asia + Pacific | D129: 1.938 | E129: 65.176 | F129: 49119646
B130: Namibia | C130: Africa | D130: 3.051 | E130: 64.483 | F130: 2404477
B131: Nepal | C131: Asia + Pacific | D131: 2.3 | E131: 68.41 | F131: 31535507
B132: Netherlands | C132: Europe | D132: 1.774 | E132: 81.038 | F132: 16761552
B133: Netherlands Antilles | C133: Latin America + Caribbean | D133: 1.89 | E133: 76.894 | F133: 205860
B134: New Caledonia | C134: Asia + Pacific | D134: 2.127 | E134: 76.306 | F134: 262605
B135: New Zealand | C135: Asia + Pacific | D135: 2.052 | E135: 81.132 | F135: 4508166
B136: Nicaragua | C136: Latin America + Caribbean | D136: 2.498 | E136: 74.839 | F136: 6041763
B137: Niger | C137: Africa | D137: 7.561 | E137: 58.409 | F137: 17239826
B138: Nigeria | C138: Africa | D138: 5.976 | E138: 52.506 | F138: 170901148
B139: Norway | C139: Europe | D139: 1.931 | E139: 81.503 | F139: 4991997
B140: Oman | C140: West Asia | D140: 2.853 | E140: 76.552 | F140: 2957333
B141: Pakistan | C141: Asia + Pacific | D141: 3.185 | E141: 66.57 | F141: 183188847
B142: Panama | C142: Latin America + Caribbean | D142: 2.466 | E142: 77.556 | F142: 3678264
B143: Papua New Guinea | C143: Asia + Pacific | D143: 3.781 | E143: 62.421 | F143: 7327281
B144: Paraguay | C144: Latin America + Caribbean | D144: 2.864 | E144: 72.259 | F144: 6798236
B145: Peru | C145: Latin America + Caribbean | D145: 2.417 | E145: 74.826 | F145: 30075185
B146: Philippines | C146: Asia + Pacific | D146: 3.043 | E146: 68.703 | F146: 98112780
B147: Poland | C147: Europe | D147: 1.417 | E147: 76.408 | F147: 38331803
B148: Portugal | C148: Europe | D148: 1.315 | E148: 79.945 | F148: 10704534
B149: Puerto Rico | C149: Latin America + Caribbean | D149: 1.636 | E149: 78.864 | F149: 3742334
B150: Qatar | C150: West Asia | D150: 2.019 | E150: 78.369 | F150: 1976840
B151: Reunion | C151: Africa | D151: 2.232 | E151: 79.646 | F151: 874944
B152: Romania | C152: Europe | D152: 1.417 | E152: 73.831 | F152: 21338815
B153: Russia | C153: Europe | D153: 1.538 | E153: 67.979 | F153: 142557892
B154: Rwanda | C154: Africa | D154: 4.508 | E154: 64.066 | F154: 11608439
B155: Saint Lucia | C155: Latin America + Caribbean | D155: 1.912 | E155: 74.804 | F155: 179515
B156: Saint Vincent and the Grenadines | C156: Latin America + Caribbean | D156: 1.997 | E156: 72.488 | F156: 109354
B157: Samoa | C157: Asia + Pacific | D157: 4.147 | E157: 73.156 | F157: 185727
B158: Sao Tome and Principe | C158: Africa | D158: 4.075 | E158: 66.337 | F158: 175383
B159: Saudi Arabia | C159: West Asia | D159: 2.644 | E159: 75.479 | F159: 29319402
B160: Senegal | C160: Africa | D160: 4.934 | E160: 63.451 | F160: 13454191
B161: Serbia | C161: Europe | D161: 1.365 | E161: 74.059 | F161: 9835010
B162: Seychelles | C162: Africa | D162: 2.18 | E162: 73.187 | F162: 87417
B163: Sierra Leone | C163: Africa | D163: 4.705 | E163: 45.561 | F163: 6255163
B164: Singapore | C164: Asia + Pacific | D164: 1.282 | E164: 82.322 | F164: 5300914
B165: Slovak Republic | C165: Europe | D165: 1.396 | E165: 75.397 | F165: 5488775
B166: Slovenia | C166: Europe | D166: 1.509 | E166: 79.591 | F166: 2044766
B167: Solomon Islands | C167: Asia + Pacific | D167: 4.031 | E167: 67.675 | F167: 580791
B168: Somalia | C168: Africa | D168: 6.563 | E168: 55.05 | F168: 10052842
B169: South Africa | C169: Africa | D169: 2.387 | E169: 56.916 | F169: 50981076
B170: South Sudan | C170: Africa | D170: 4.92 | E170: 55.264 | F170: 10881979
B171: Spain | C171: Europe | D171: 1.505 | E171: 82.1 | F171: 47042602
B172: Sri Lanka | C172: Asia + Pacific | D172: 2.339 | E172: 74.293 | F172: 21393876
B173: Sudan | C173: Africa | D173: 4.42 | E173: 62.055 | F173: 35940905
B174: Suriname | C174: Latin America + Caribbean | D174: 2.268 | E174: 71.019 | F174: 538882
B175: Swaziland | C175: Africa | D175: 3.334 | E175: 49 | F175: 1237166
B176: Sweden | C176: Europe | D176: 1.928 | E176: 81.818 | F176: 9545823
B177: Switzerland | C177: Europe | D177: 1.533 | E177: 82.604 | F177: 7761820
B178: Syria | C178: West Asia | D178: 2.964 | E178: 71 | F178: 21468962
B179: Taiwan | C179: Asia + Pacific | D179: 1.265 | E179: 79.45 | F179: 23114000
B180: Tajikistan | C180: Asia + Pacific | D180: 3.815 | E180: 67.248 | F180: 7183529
B181: Tanzania | C181: Africa | D181: 5.214 | E181: 61.53 | F181: 49153002
B182: Thailand | C182: Asia + Pacific | D182: 1.399 | E182: 74.401 | F182: 70243267
B183: Timor-Leste | C183: Asia + Pacific | D183: 5.855 | E183: 67.538 | F183: 1223665
B184: Togo | C184: Africa | D184: 4.639 | E184: 56.537 | F184: 6412560
B185: Tonga | C185: Asia + Pacific | D185: 3.767 | E185: 72.673 | F185: 105265
B186: Trinidad and Tobago | C186: Latin America + Caribbean | D186: 1.797 | E186: 69.865 | F186: 1355342
B187: Tunisia | C187: Africa | D187: 2.008 | E187: 75.873 | F187: 10813680
B188: Turkey | C188: Europe | D188: 2.041 | E188: 75.259 | F188: 75359032
B189: Turkmenistan | C189: Asia + Pacific | D189: 2.326 | E189: 65.452 | F189: 5234640
B190: Uganda | C190: Africa | D190: 5.867 | E190: 59.209 | F190: 36759274
B191: Ukraine | C191: Europe | D191: 1.47 | E191: 68.525 | F191: 44696741
B192: United Arab Emirates | C192: West Asia | D192: 1.801 | E192: 76.841 | F192: 8207940
B193: United Kingdom | C193: Europe | D193: 1.892 | E193: 80.547 | F193: 63177406
B194: United States | C194: North America | D194: 1.976 | E194: 78.941 | F194: 318497630
B195: Uruguay | C195: Latin America + Caribbean | D195: 2.046 | E195: 77.23 | F195: 3403117
B196: Uzbekistan | C196: Asia + Pacific | D196: 2.309 | E196: 68.241 | F196: 28398155
B197: Vanuatu | C197: Asia + Pacific | D197: 3.382 | E197: 71.626 | F197: 257812
B198: Venezuela | C198: Latin America + Caribbean | D198: 2.39 | E198: 74.633 | F198: 30340637
B199: Vietnam | C199: Asia + Pacific | D199: 1.743 | E199: 75.945 | F199: 90656550
B200: Virgin Islands (U.S.) | C200: North America | D200: 2.487 | E200: 80.152 | F200: 108300
B201: West Bank and Gaza | C201: West Asia | D201: 4.01 | E201: 73.203 | F201: 4393572
B202: Western Sahara | C202: Africa | D202: 2.363 | E202: 67.764 | F202: 585270
... 3 more rows

Sheet Tooltips
B2: Tooltip
B4: Chart | C4: 1
B5: Point Index | C5: 4
B7: =INDEX(tab_data[Country],Tooltips!$C$5) -> Angola | E7: =IFERROR(INDEX(tab_continents[Region],myPointIndex),"") -> North America
B8: =INDEX(tab_data[Region],Tooltips!$C$5) -> Africa | E8: -
B10: Fertility Rate | C10: =INDEX(tab_data[Fertility Rate],myPointIndex) -> 5.863 | E10: Average Fertility Rate | F10: =IFERROR(INDEX(tab_continents[Avg. Fertility Rate],myPointIndex),"") -> 2.0555
B11: Life Expectancy | C11: =INDEX(tab_data[Life Expectancy],myPointIndex) -> 51.899 | E11: Average Life Expectancy | F11: =IFERROR(INDEX(tab_continents[Avg. Life Expectancy],myPointIndex),"") -> 79.13225
B12: Population | C12: =INDEX(tab_data[Population],myPointIndex) -> 20714494 | E12: Sum Population | F12: =IFERROR(INDEX(tab_continents[Sum Population],myPointIndex),"") -> 353691081
B15: =CHOOSE(myChartIndex,B7,E7) -> Angola
B16: =CHOOSE(myChartIndex,B8,E8) -> Africa
B18: =CHOOSE(myChartIndex,B10,E10) -> Fertility Rate | C18: 5.863
B19: Life Expectancy | C19: 51.899
B20: Population | C20: 20714494
